bitfinex/quotes_ETHUSD_20251201
["timestamp","ask_amount","ask_price","bid_price","bid_amount"]
[1764552895369,0.4875,2850.1,2850.0,0.001]
[1764552895871,0.9522,2850.1,2850.0,0.001]
[1764552896402,4.46084881,2850.1,2850.0,0.001]
[1764552896567,0.9522,2850.1,2850.0,0.001]
[1764552896761,0.4875,2850.1,2850.0,0.001]
[1764552896968,3.859561,2850.2,2850.0,0.001]
[1764552896969,0.351,2850.2,2850.0,0.001]
[1764552897649,0.4647,2851.1,2850.1,0.6616]
[1764552897851,0.4647,2851.2,2850.3,0.4864]
[1764552898085,0.8157,2851.2,2850.3,0.4864]
[1764552899155,0.8157,2851.2,2850.4,7.01655906]
[1764552899352,0.1997,2851.4,2850.5,0.78537747]
[1764552899570,0.351,2851.7,2850.5,1.23829591]
[1764552899882,0.351,2851.4,2850.5,0.75029591]
[1764552900067,0.351,2851.4,2850.6,0.488]
[1764552900458,0.4899,2850.7,2849.5,0.488]
[1764552900678,0.351,2851.0,2850.1,0.1752]
[1764552900868,0.351,2850.7,2850.2,0.03508525]
[1764552901248,0.351,2850.7,2850.0,3.50975234]
[1764552901249,0.8157,2850.7,2850.0,0.001]
[1764552901649,0.351,2850.8,2850.1,0.1752]
[1764552902162,0.225,2851.4,2850.7,0.4864]
[1764552902363,0.351,2851.3,2850.7,0.4864]
[1764552902687,0.351,2851.4,2850.7,0.4864]
[1764552902875,0.4647,2851.6,2850.3,0.405504]
[1764552903077,0.351,2851.4,2850.1,0.1752]
[1764552903271,3.85808474,2851.4,2850.3,7.01680524]
[1764552903583,1.98633103,2851.8,2850.5,0.405504]
[1764552903880,1.98633103,2851.8,2850.7,0.405504]
[1764552904281,0.351,2851.7,2850.8,0.225]
[1764552904787,0.351,2851.7,2850.8,0.713]
[1764552905352,0.351,2851.7,2850.9,7.01532848]
[1764552905560,0.351,2851.7,2851.0,0.77283285]
[1764552905755,1.98633103,2851.8,2851.6,0.175]
[1764552905961,0.8157,2852.8,2851.7,0.4864]
[1764552906284,0.351,2852.7,2851.7,0.225]
[1764552906664,0.4647,2852.6,2851.6,0.4]
[1764552907286,4.32127414,2852.6,2851.1,0.405504]
[1764552907489,0.351,2852.0,2851.1,0.580504]
[1764552907784,0.351,2852.0,2851.1,1.53109811]
[1764552907954,0.351,2852.4,2851.2,0.756504]
[1764552908154,0.351,2852.4,2851.2,1.244504]
[1764552908356,1.0883467,2852.4,2851.3,0.72500981]
[1764552908557,1.0883467,2852.4,2851.3,0.95000981]
[1764552908786,0.8157,2852.3,2851.3,0.95000981]
[1764552909584,0.75228,2852.3,2851.4,7.01409832]
[1764552909776,3.505218,2852.9,2851.5,0.893504]
[1764552909976,0.72559411,2852.8,2851.6,1.14146515]
[1764552910184,0.72559411,2852.8,2851.6,1.62946515]
[1764552910390,0.002,2854.2,2851.8,0.405504]
[1764552910561,0.351,2853.5,2852.1,0.405504]
[1764552910901,0.002,2852.3,2852.1,0.72559411]
[1764552911199,0.002,2852.3,2852.2,0.74083991]
[1764552911358,0.002,2852.3,2852.2,1.379904]
[1764552911729,0.002,2852.3,2852.2,5.6115636]
[1764552912459,0.002,2852.3,2852.2,0.4864]
[1764552912676,0.002,2852.3,2851.5,3.50692617]
[1764552912878,0.002,2852.3,2851.6,0.95059411]
[1764552913061,0.002,2852.3,2851.7,1.19593726]
[1764552913261,0.002,2852.3,2851.8,0.405504]
[1764552913570,0.002,2852.3,2852.0,7.01262272]
[1764552913765,3.69811879,2852.9,2852.0,7.01262272]
[1764552913967,4.16281879,2852.9,2852.0,7.01262272]
[1764552914169,4.16281879,2852.9,2852.0,0.225]
[1764552914170,0.35026635,2852.7,2852.0,0.225]
[1764552914463,0.80181868,2852.8,2852.1,0.488]
[1764552914686,0.19194,2852.9,2852.1,0.488]
[1764552915191,0.54220635,2852.9,2852.0,0.26006311]
[1764552915591,4.04749278,2852.9,2852.1,3.50618842]
[1764552916390,0.54220635,2852.9,2852.1,7.01237684]
[1764552916760,0.35026635,2853.3,2852.2,0.92856465]
[1764552916963,0.1997,2852.9,2852.3,0.225]
[1764552917191,0.19769,2852.9,2852.3,0.225]
[1764552917690,0.19769,2852.9,2852.3,3.73093469]
[1764552917885,0.19769,2852.9,2852.4,0.03505819]
[1764552918190,0.81194635,2853.7,2852.8,0.4864]
[1764552918368,0.35026635,2853.7,2852.4,1.2486523]
[1764552918689,7.20685402,2853.9,2852.5,0.225]
[1764552918988,0.35026635,2853.4,2852.5,0.225]
[1764552919488,0.35026635,2853.7,2852.6,0.52305573]
[1764552919694,0.35026635,2853.4,2852.7,3.50545097]
[1764552919903,0.35026635,2853.4,2852.7,7.73449761]
[1764552920264,0.35026635,2853.5,2852.7,7.73449761]
[1764552920459,0.35026635,2853.5,2852.7,11.23994858]
[1764552920708,0.1989,2853.9,2852.7,11.23994858]
[1764552920709,0.1989,2853.9,2853.4,0.083]
[1764552920991,0.35026635,2853.6,2853.1,0.225]
[1764552921378,0.1989,2853.9,2853.2,0.488]
[1764552921691,0.1989,2853.9,2853.2,7.00961547]
[1764552922159,3.702887,2853.9,2853.1,0.225]
[1764552922485,0.1997,2853.9,2853.1,7.23491902]
[1764552922965,0.002,2854.0,2853.2,0.4857]
[1764552923577,0.001,2854.0,2853.9,3.98037701]
[1764552923784,0.001,2854.0,2853.9,4.20537701]
[1764552924330,0.001,2854.0,2853.9,5.04207701]
[1764552924475,0.001,2854.0,2853.9,6.30219849]
[1764552925590,0.001,2854.0,2853.9,19.6173056]
[1764552925810,0.001,2854.0,2853.9,17.6824236]
[1764552926328,0.001,2854.0,2853.9,37.0277926]
[1764552926527,0.002,2854.2,2854.1,36.34233209]
[1764552926704,0.002,2854.2,2854.1,40.80525507]
[1764552927013,0.002,2854.8,2854.4,11.77248811]
[1764552927214,0.00092,2854.5,2854.4,1.0743]
[1764552927427,0.00092,2854.5,2854.4,1.5557]
[1764552927584,0.00092,2854.5,2854.4,16.63473633]
[1764552927784,0.00092,2854.5,2854.4,4.74117098]
[1764552927991,0.00092,2854.5,2854.4,5.83916133]
[1764552928197,0.00092,2854.5,2854.4,8.25198233]
[1764552928397,0.00092,2854.5,2854.4,7.90098233]
[1764552928922,0.00092,2854.5,2854.4,5.83916133]
[1764552929293,0.00092,2854.5,2854.1,0.0588]
[1764552929622,0.00092,2854.5,2854.4,5.07825733]
[1764552929830,0.002,2854.6,2854.5,31.48209811]
[1764552930046,0.002,2854.6,2854.5,22.35257011]
[1764552930398,0.002,2854.6,2854.5,13.34268911]
[1764552930700,0.002,2854.6,2854.5,1.44889411]
[1764552931020,0.002,2854.6,2854.5,0.95059411]
[1764552931220,0.002,2854.6,2854.4,0.225]
[1764552931520,0.002,2854.6,2854.5,0.9797]
[1764552931747,0.002,2854.6,2854.5,4.48294049]
[1764552932027,0.002,2854.6,2854.5,4.51797289]
[1764552932322,0.002,2854.6,2854.5,4.03657289]
[1764552932699,0.002,2854.6,2854.5,4.762167]
[1764552932898,0.002,2854.6,2854.5,5.64850593]
[1764552933723,0.002,2854.6,2854.5,6.05400993]
[1764552934025,0.002,2854.6,2854.5,6.50037753]
[1764552934319,0.002,2854.6,2854.5,6.01897753]
[1764552935009,0.002,2854.6,2854.5,0.72559411]
[1764552935211,0.002,2854.6,2854.5,4.4538346]
[1764552935615,0.9521,2854.6,2853.6,9.07636776]
[1764552935812,0.036,2854.5,2853.7,0.225]
[1764552936125,0.4889,2854.6,2853.8,0.26004099]
[1764552936126,0.002,2854.6,2853.8,0.26004099]
[1764552936299,0.002,2854.6,2854.0,0.351]
[1764552936494,0.002,2854.6,2854.2,0.405504]
[1764552936705,0.002,2854.6,2854.3,0.225]
[1764552937598,0.002,2854.6,2854.4,7.00672644]
[1764552937799,0.002,2854.6,2854.5,0.903804]
[1764552937999,0.002,2854.6,2854.5,1.736204]
[1764552938329,0.002,2854.6,2854.5,1.7712364]
[1764552938624,0.002,2854.6,2854.5,2.11079811]
[1764552938823,0.002,2854.6,2854.5,1.62939811]
[1764552939000,0.002,2854.6,2854.5,3.45532783]
[1764552939327,0.002,2854.6,2854.5,0.95059411]
[1764552939528,0.002,2854.6,2854.5,2.14583051]
[1764552939852,0.002,2854.6,2854.5,4.8048346]
[1764552940024,0.002,2854.6,2854.5,4.4538346]
[1764552940205,0.002,2854.6,2854.5,4.8048346]
[1764552940536,0.002,2854.6,2854.5,4.4538346]
[1764552941697,0.9521,2854.6,2853.7,3.98554172]
[1764552942003,0.9521,2854.6,2853.8,10.51229937]
[1764552942200,0.9521,2854.6,2854.0,0.351]
[1764552942418,0.9521,2854.6,2853.9,0.225]
[1764552942419,0.4652,2854.6,2854.1,0.03503731]
[1764552942626,0.002,2854.6,2854.1,0.351]
[1764552942811,0.002,2854.6,2854.2,0.405504]
[1764552943025,0.002,2854.6,2854.5,0.4983]
[1764552943702,0.002,2854.6,2854.5,4.00154049]
[1764552944039,0.002,2854.6,2854.5,4.82267027]
[1764552944502,0.002,2854.6,2854.5,5.69010267]
[1764552944708,0.002,2854.6,2854.5,5.17367027]
[1764552944903,0.002,2854.6,2854.5,5.57917427]
[1764552945206,0.002,2854.6,2854.5,6.09560667]
[1764552945426,0.002,2854.6,2854.5,6.32060667]
[1764552945623,0.002,2854.6,2854.5,17.21907278]
[1764552945829,0.002,2854.6,2854.5,17.53504038]
[1764552946035,0.002,2854.6,2854.5,7.01116838]
[1764552946205,0.002,2854.6,2854.5,45.05349862]
[1764552946613,0.002,2854.6,2854.5,37.07789962]
[1764552946839,0.002,2854.6,2854.5,25.23349562]
[1764552947216,0.002,2854.6,2854.5,27.76756162]
[1764552947537,0.002,2854.6,2854.5,22.88196062]
[1764552948441,0.002,2854.6,2854.5,31.92548662]
[1764552949441,0.002,2854.6,2854.5,11.28984238]
[1764552950535,0.002,2854.6,2854.5,10.71384238]
[1764552950748,0.002,2854.6,2854.5,11.28984238]
[1764552950957,0.002,2854.6,2854.5,27.57882438]
[1764552951237,0.002,2854.6,2854.5,38.52671162]
[1764552951941,0.002,2854.9,2854.8,30.405504]
[1764552952140,0.002,2854.9,2854.8,38.69435027]
[1764552952346,0.002,2854.9,2854.8,39.17575027]
[1764552953744,0.002,2855.2,2855.0,0.405504]
[1764552954045,0.002,2855.2,2855.1,13.78365768]
[1764552954209,0.002,2855.2,2855.1,44.24403264]
[1764552954411,0.002,2855.2,2855.1,26.66348762]
[1764552955227,0.002,2855.2,2855.1,29.77695662]
[1764552955424,0.002,2855.2,2855.1,13.55680738]
[1764552955745,0.002,2855.2,2855.1,9.5124184]
[1764552956144,0.002,2855.2,2855.1,23.2376674]
[1764552956642,0.002,2855.2,2855.1,13.5498274]
[1764552957212,0.002,2855.2,2855.1,12.4985944]
[1764552958238,0.002,2855.2,2855.1,19.9911814]
[1764552958444,0.002,2855.2,2855.1,21.52934499]
[1764552958848,0.002,2855.2,2855.1,12.24367799]
[1764552959341,0.002,2855.2,2855.1,12.32519799]
[1764552960346,0.002,2855.2,2855.1,10.88979099]
[1764552960660,0.002,2855.2,2855.1,11.62844699]
[1764552960954,0.002,2855.2,2855.1,10.48844699]
[1764552961138,0.002,2855.2,2855.1,11.44314699]
[1764552961336,0.002,2855.2,2855.1,28.68130223]
[1764552961644,0.002,2855.5,2855.4,4.65047411]
[1764552961849,0.002,2855.5,2855.4,6.07022152]
[1764552962220,0.002,2855.5,2855.4,12.34251682]
[1764552962428,0.002,2855.5,2855.4,12.83791682]
[1764552962634,0.4574,2856.9,2855.6,0.405504]
[1764552962818,0.4574,2856.9,2856.1,1.13109811]
[1764552963045,0.4574,2856.9,2856.3,0.405504]
[1764552963230,0.4574,2856.9,2856.4,0.225]
[1764552963428,0.4518,2856.4,2856.2,0.96327284]
[1764552964444,0.4574,2856.0,2855.7,0.26001768]
[1764552964748,0.4574,2856.0,2855.7,0.61101768]
[1764552964947,0.4574,2856.3,2855.8,0.405504]
[1764552965160,0.4574,2856.3,2855.7,0.225]
[1764552965323,0.4574,2856.3,2855.7,0.576]
[1764552965671,0.4574,2856.3,2855.8,1.15109326]
[1764552965950,0.4574,2856.7,2856.0,0.405504]
[1764552966127,0.1925,2857.0,2856.3,0.405504]
[1764552966332,0.1925,2857.0,2856.5,0.405504]
[1764552966644,0.4574,2857.4,2856.9,0.405504]
[1764552966845,0.4574,2857.4,2857.0,0.225]
[1764552967053,0.4574,2857.8,2857.0,0.576]
[1764552967225,0.4574,2857.3,2857.0,0.225]
[1764552967553,0.4518,2857.1,2856.6,0.72559411]
[1764552967728,0.6499,2856.7,2855.9,3.50152316]
[1764552967922,0.0564,2856.6,2856.0,0.76060811]
[1764552968121,0.4574,2856.6,2856.1,0.225]
[1764552968345,0.4574,2856.6,2856.3,3.5010328]
[1764552968534,0.4574,2856.6,2856.1,3.50122358]
[1764552968718,0.4574,2856.6,2856.2,0.26001155]
[1764552969121,0.4518,2856.3,2856.2,0.26001155]
[1764552969653,0.9092,2856.3,2855.6,0.405504]
[1764552969950,0.4574,2856.3,2855.8,1.13109811]
[1764552970254,0.4574,2856.6,2856.0,7.00280112]
[1764552970427,0.4574,2856.6,2856.1,0.26001277]
[1764552971049,0.1995,2856.8,2856.2,0.405504]
[1764552971229,0.1995,2856.8,2856.3,0.03501032]
[1764552971559,0.4574,2857.2,2856.6,0.405504]
[1764552971722,0.4574,2857.9,2856.7,0.9734041]
[1764552971921,1.18299411,2857.9,2856.7,0.9734041]
[1764552972151,1.18299411,2857.9,2856.7,1.3244041]
[1764552972356,0.4574,2857.8,2856.8,7.0008401]
[1764552972541,0.4574,2857.8,2856.9,0.405504]
[1764552972847,0.4574,2857.8,2857.0,1.09067642]
[1764552973037,0.4574,2857.8,2857.1,0.225]
[1764552973442,0.4518,2857.2,2857.1,0.225]
[1764552973843,0.4574,2857.6,2857.1,0.225]
[1764552974349,0.4518,2857.2,2857.1,0.225]
[1764552974556,0.4518,2857.2,2857.1,3.7250525]
[1764552974755,0.9092,2857.2,2856.0,8.312659]
[1764552974938,0.0745,2857.1,2856.0,1.28519043]
[1764552975131,0.0745,2857.1,2855.5,3.50198624]
[1764552975132,0.6475,2856.1,2855.5,3.50198624]
[1764552975343,0.0783,2856.0,2855.6,0.225]
[1764552975652,0.4443,2855.6,2855.1,3.85350429]
[1764552975852,0.0819,2855.5,2855.2,0.26002381]
[1764552976052,0.0819,2855.5,2855.2,0.95059411]
[1764552976247,0.5393,2855.5,2855.2,0.95059411]
[1764552976448,0.5393,2855.5,2855.4,0.72559411]
[1764552976786,0.4574,2855.9,2855.4,0.03502136]
[1764552976960,0.1995,2856.1,2855.4,1.11161547]
[1764552977129,0.4518,2855.5,2855.4,0.72559411]
[1764552977458,0.6569,2856.1,2855.4,0.72559411]
[1764552977659,0.4574,2856.0,2855.4,0.72559411]
[1764552977955,0.4574,2856.0,2855.5,0.225]
[1764552978456,0.4574,2856.0,2855.6,7.00378204]
[1764552978756,0.4574,2856.0,2855.7,0.03501768]
[1764552978964,0.4574,2856.5,2855.8,0.405504]
[1764552979137,0.4574,2856.5,2855.9,0.225]
[1764552979328,0.4574,2856.5,2856.0,0.035014]
[1764552979525,0.4574,2856.5,2855.9,0.576]
[1764552979760,0.4574,2856.5,2856.0,0.386014]
[1764552980150,0.4574,2856.9,2856.0,0.386014]
[1764552980560,0.4574,2856.9,2856.0,3.50139768]
[1764552980561,3.95772058,2856.9,2856.0,3.50139768]
[1764552980763,3.95772058,2856.9,2856.0,3.94968785]
[1764552981073,0.002,2856.3,2856.0,3.94968785]
[1764552981272,0.002,2856.3,2856.0,7.45108841]
[1764552981458,0.002,2856.3,2856.2,0.351]
[1764552981640,0.002,2856.3,2856.2,0.38601155]
[1764552981839,0.002,2856.3,2856.2,2.93757811]
[1764552982173,0.002,2856.3,2856.2,1.57737411]
[1764552982376,0.002,2856.3,2856.2,1.80237411]
[1764552982543,0.002,2856.3,2856.2,5.30352949]
[1764552982744,0.002,2856.3,2856.2,5.33854104]
[1764552982966,0.4709,2856.3,2856.2,4.45174949]
[1764552983771,0.9564,2856.3,2856.1,3.50124026]
[1764552983966,0.9564,2856.3,2856.2,0.225]
[1764552984298,0.9544,2856.2,2856.1,0.225]
[1764552984804,0.9544,2856.2,2855.4,4.37814893]
[1764552985099,0.6722,2855.5,2855.4,0.001]
[1764552985443,1.1617,2855.5,2855.4,0.226]
[1764552986563,0.002,2856.3,2855.5,4.778998]
[1764552986871,0.002,2856.3,2855.5,1.13109811]
[1764552986872,0.4915,2856.3,2855.5,1.13109811]
[1764552987073,0.4915,2856.3,2855.6,0.87123707]
[1764552987373,0.4915,2856.3,2855.7,0.03501768]
[1764552987548,0.4915,2856.3,2855.8,0.225]
[1764552988057,0.4915,2856.3,2855.9,0.03501523]
[1764552988452,0.002,2856.6,2856.2,0.6643]
[1764552988652,0.689,2858.0,2856.7,19.602747]
[1764552988889,0.689,2858.0,2857.1,0.405504]
[1764552989191,0.4895,2857.9,2856.4,17.306878]
[1764552989356,0.4895,2857.9,2856.8,0.351]
[1764552989556,0.4895,2857.9,2856.9,0.225]
[1764552989783,0.4895,2857.9,2857.0,0.225]
[1764552989951,0.35026635,2857.8,2857.0,0.225]
[1764552990284,1.25819091,2857.9,2857.0,0.576]
[1764552990486,0.4895,2857.9,2857.1,7.000105]
[1764552990667,0.4895,2857.8,2857.1,7.000105]
[1764552990854,0.1995,2858.0,2857.2,0.1938]
[1764552991050,0.674,2858.2,2857.5,0.351]
[1764552991285,0.674,2858.2,2857.6,0.225]
[1764552991497,0.1845,2858.2,2857.6,0.225]
[1764552991650,0.1845,2858.2,2857.8,0.351]
[1764552992057,0.6783,2858.5,2857.9,0.405504]
[1764552992276,0.6783,2858.5,2858.0,0.225]
[1764552992576,0.4895,2858.4,2858.1,0.225]
[1764552992777,0.4834,2858.2,2858.1,0.225]
[1764552992954,0.4834,2858.2,2857.7,0.72559411]
[1764552993163,0.4895,2858.1,2857.7,0.72559411]
[1764552993385,0.4895,2858.1,2857.8,0.225]
[1764552994389,0.6722,2857.9,2857.7,0.72559411]
[1764552994559,0.6722,2857.9,2857.7,3.49929625]
[1764552994903,0.4895,2858.1,2857.8,0.95059411]
[1764552995084,0.1888,2858.5,2857.8,0.95059411]
[1764552995290,0.4895,2858.1,2857.8,0.95059411]
[1764552995685,0.6722,2857.9,2857.8,0.95059411]
[1764552995877,0.4895,2858.4,2857.8,0.95059411]
[1764552996192,0.6722,2857.9,2857.8,0.225]
[1764552996573,0.4895,2858.4,2857.8,0.225]
[1764552996775,0.4895,2858.4,2857.9,3.49907274]
[1764552996971,0.4895,2858.4,2857.9,6.99814548]
[1764552997565,0.4895,2858.4,2857.8,0.225]
[1764552997768,0.4895,2858.4,2857.8,3.72419518]
[1764552998066,0.4895,2858.4,2857.8,7.22339036]
[1764552998274,0.4895,2858.4,2857.8,8.33076981]
[1764552998475,0.4895,2858.4,2857.8,11.82996499]
[1764552998798,0.1888,2858.5,2857.8,8.33076981]
[1764552999000,0.1888,2858.5,2857.8,11.82996499]
[1764552999376,0.1888,2858.5,2857.8,8.33076981]
[1764552999581,0.002,2858.1,2857.8,11.82996499]
[1764552999877,0.6722,2857.9,2857.8,4.83157463]
[1764553000088,0.002,2858.1,2857.8,3.72419518]
[1764553000396,0.6722,2857.9,2857.8,3.49919518]
[1764553000598,0.6722,2857.9,2857.8,3.72419518]
[1764553000780,0.4915,2858.1,2857.8,7.22339036]
[1764553001184,0.002,2858.1,2857.8,7.22339036]
[1764553001597,0.002,2858.1,2857.9,0.03499072]
[1764553001968,0.002,2858.1,2858.0,0.225]
[1764553002783,0.002,2858.1,2857.4,3.49965606]
[1764553002784,0.4854,2858.1,2857.4,0.72559411]
[1764553002989,0.4854,2858.1,2857.4,1.49811502]
[1764553003177,0.4854,2858.1,2857.6,6.99888016]
[1764553003501,0.002,2858.1,2857.7,0.351]
[1764553003797,0.002,2858.1,2857.8,0.351]
[1764553003992,0.002,2858.1,2857.9,0.225]
[1764553004788,0.9729,2858.0,2857.9,0.225]
[1764553004989,0.4834,2858.0,2857.9,0.225]
[1764553005194,0.002,2858.1,2858.0,3.49895031]
[1764553005700,0.002,2858.1,2858.0,4.7231417]
[1764553005901,0.002,2858.1,2858.0,5.0741417]
[1764553006303,0.002,2858.1,2858.0,5.0391522]
[1764553006604,0.002,2858.1,2858.0,30.04492881]
[1764553006900,0.002,2858.1,2858.0,12.05694931]
[1764553007299,0.002,2858.1,2858.0,10.18733531]
[1764553007501,0.002,2858.1,2858.0,10.78952031]
[1764553007900,0.002,2858.1,2858.0,15.31217531]
[1764553008101,0.002,2858.1,2858.0,10.95752031]
[1764553008294,0.002,2858.1,2858.0,19.52566778]
[1764553008876,0.002,2858.1,2858.0,45.43359778]
[1764553009202,0.002,2858.1,2858.0,44.81263678]
[1764553009378,0.002,2858.1,2858.0,9.88095631]
[1764553009887,0.002,2858.1,2858.0,6.86545031]
[1764553010082,0.002,2858.1,2858.0,29.96691631]
[1764553010284,0.002,2858.1,2858.0,9.16044831]
[1764553010606,0.002,2858.1,2858.0,9.51144831]
[1764553010912,0.002,2858.1,2858.0,17.01577931]
[1764553011112,0.002,2858.1,2858.0,12.17936931]
[1764553011577,0.002,2858.1,2858.0,9.51144731]
[1764553011973,0.002,2858.1,2858.0,20.03464631]
[1764553012202,0.002,2858.1,2858.0,6.17025031]
[1764553012376,0.002,2858.1,2858.0,9.38197231]
[1764553012706,0.002,2858.1,2858.0,4.80054442]
[1764553012903,0.4773,2858.1,2858.0,0.72559411]
[1764553013116,0.9549,2858.1,2857.5,6.9991251]
[1764553013317,0.4796,2858.1,2857.5,6.9991251]
[1764553013518,0.4796,2858.1,2857.6,0.95059411]
[1764553013680,0.4796,2858.1,2857.8,0.72559411]
[1764553013882,0.4796,2858.1,2857.7,6.99863526]
[1764553014081,0.4796,2858.1,2857.8,0.72559411]
[1764553014632,0.6659,2857.9,2857.6,3.49940403]
[1764553014785,0.002,2858.1,2857.9,0.576]
[1764553015125,0.002,2858.1,2858.0,0.0349895]
[1764553015491,0.002,2858.1,2858.0,1.4035935]
[1764553015818,0.002,2858.1,2858.0,22.16756342]
[1764553015980,0.002,2858.1,2858.0,24.80872675]
[1764553016384,0.002,2858.1,2858.0,25.03372675]
[1764553016579,0.002,2858.1,2858.0,35.30495202]
[1764553016818,0.002,2858.1,2858.0,39.20759402]
[1764553017615,0.002,2858.1,2858.0,39.71553423]
[1764553017820,0.002,2858.1,2858.0,39.83825323]
[1764553018236,0.002,2858.1,2858.0,39.33031302]
[1764553018397,0.002,2858.1,2858.0,38.81031175]
[1764553018598,0.002,2858.1,2858.0,38.58531175]
[1764553018925,0.002,2858.1,2858.0,21.91420264]
[1764553019232,0.002,2858.1,2858.0,20.84013075]
[1764553019804,0.002,2858.1,2858.0,38.81031175]
[1764553020413,0.002,2858.1,2858.0,13.36851575]
[1764553020615,0.002,2858.1,2858.0,13.59351575]
[1764553020833,0.002,2858.1,2858.0,32.54512075]
[1764553021340,0.002,2858.1,2858.0,32.32012075]
[1764553021509,0.002,2858.1,2858.0,12.29622775]
[1764553021704,0.002,2858.1,2858.0,3.49895031]
[1764553021924,0.002,2858.1,2858.0,3.75893981]
[1764553022202,0.4773,2858.1,2858.0,3.84995031]
[1764553022409,0.9549,2858.1,2858.0,3.72395031]
[1764553023518,0.9549,2858.1,2857.0,10.500525]
[1764553023840,0.5311,2858.0,2857.3,6.99961502]
[1764553024153,0.5311,2858.0,2857.3,1.07659411]
[1764553024332,0.1906,2857.9,2857.4,0.351]
[1764553024642,0.1906,2857.9,2857.2,7.22485199]
[1764553024643,0.4711,2857.4,2857.2,7.22485199]
[1764553024948,0.1906,2857.9,2857.2,3.72492199]
[1764553024949,0.0576,2857.3,2857.2,3.72492199]
[1764553025107,0.4776,2857.8,2857.3,0.72559411]
[1764553025313,0.4753,2857.4,2857.3,0.72559411]
[1764553025736,0.9529,2857.4,2857.3,4.22540162]
[1764553026126,0.9529,2857.4,2856.7,0.351]
[1764553026328,0.5311,2857.3,2856.8,0.96022517]
[1764553027148,0.002,2858.1,2856.8,0.96022517]
[1764553027149,0.002,2858.1,2857.3,0.405504]
[1764553027339,0.1906,2857.9,2857.4,0.225]
[1764553027645,0.1906,2857.9,2857.5,0.351]
[1764553027808,0.1906,2857.9,2857.6,6.99888016]
[1764553028006,0.1906,2857.9,2857.7,0.76998119]
[1764553028233,0.1906,2857.9,2857.8,0.225]
[1764553028615,0.6659,2857.9,2857.5,6.99909093]
[1764553028815,0.4776,2857.8,2857.6,0.225]
[1764553029371,0.002,2858.1,2857.7,0.38599317]
[1764553029755,0.002,2858.1,2857.9,3.49907274]
[1764553029915,0.002,2858.1,2858.0,1.72049818]
[1764553030241,0.002,2858.1,2858.0,1.68550868]
[1764553030457,0.002,2858.1,2858.0,2.59100218]
[1764553030638,0.002,2858.1,2858.0,2.94200218]
[1764553030814,0.002,2858.1,2858.0,2.90701268]
[1764553031018,0.9549,2858.1,2857.8,3.49916222]
[1764553031247,0.002,2858.1,2857.9,0.95059411]
[1764553031654,0.002,2858.1,2858.0,0.0349895]
[1764553031828,0.002,2858.1,2858.0,4.25953392]
[1764553032154,0.002,2858.1,2858.0,4.22454442]
[1764553032350,0.9549,2858.1,2858.0,4.22454442]
[1764553032553,0.9549,2858.1,2858.0,4.44954442]
[1764553032750,0.002,2858.1,2858.0,4.44954442]
[1764553032956,0.4773,2858.1,2858.0,4.44954442]
[1764553033125,0.9549,2858.1,2858.0,4.44954442]
[1764553033326,0.9549,2858.1,2858.0,4.22454442]
[1764553033524,0.9549,2858.1,2857.4,3.49968502]
[1764553033720,0.4776,2858.0,2857.6,3.49944008]
[1764553034053,0.4776,2858.0,2857.7,0.98558728]
[1764553034353,0.6659,2857.7,2856.9,6.01232618]
[1764553034522,0.6659,2857.7,2857.1,0.351]
[1764553034723,0.6659,2857.7,2857.0,0.225]
[1764553034724,0.6659,2857.7,2857.0,0.95059411]
[1764553034925,0.4776,2857.6,2857.1,1.49613813]
[1764553035124,3.50087824,2858.1,2857.1,1.49613813]
[1764553035125,0.6682,2858.0,2857.1,1.32893813]
[1764553035356,0.6682,2858.0,2857.5,0.351]
[1764553035661,0.002,2858.1,2857.7,0.405504]
[1764553035950,0.002,2858.1,2857.9,1.07659411]
[1764553036160,0.002,2858.1,2858.0,1.07098714]
[1764553037354,0.002,2858.1,2858.0,3.03928525]
[1764553037527,0.002,2858.1,2858.0,3.00429575]
[1764553037862,0.002,2858.1,2858.0,5.66604606]
[1764553038024,0.002,2858.1,2858.0,6.01704606]
[1764553038221,0.002,2858.1,2858.0,5.38654206]
[1764553038428,0.4677,2858.1,2858.0,5.29553156]
[1764553038635,0.002,2858.1,2858.0,5.29553156]
[1764553038856,0.4677,2858.1,2858.0,1.57158125]
[1764553039060,0.9307,2858.1,2858.0,0.95059411]
[1764553039356,0.9307,2858.1,2858.0,4.44954442]
[1764553039658,0.9307,2858.1,2858.0,4.22454442]
[1764553039951,0.9307,2858.1,2858.0,4.44954442]
[1764553040659,0.9307,2858.1,2858.0,0.95059411]
[1764553040860,0.9307,2858.1,2857.2,0.874104]
[1764553040861,0.9307,2858.1,2857.7,3.49931763]
[1764553041057,0.6652,2857.8,2857.2,3.49993]
[1764553041269,0.6652,2857.8,2857.3,0.53460488]
[1764553041435,0.0686,2857.3,2857.2,3.49993]
[1764553041630,0.0686,2857.3,2857.2,3.72493]
[1764553041960,0.463,2857.7,2857.3,0.72559411]
[1764553042166,0.1995,2857.8,2857.4,7.03436689]
[1764553042360,0.6625,2857.8,2857.4,3.49968502]
[1764553042865,0.4783,2857.7,2857.5,0.03499562]
[1764553043030,0.1995,2857.8,2857.6,0.225]
[1764553043234,0.1945,2857.9,2857.7,0.03499317]
[1764553043656,0.4783,2858.0,2857.7,0.03499317]
[1764553043657,0.002,2858.1,2857.7,0.03499317]
[1764553043861,0.002,2858.1,2857.6,0.225]
[1764553044060,0.4783,2858.0,2857.7,3.49931763]
[1764553044261,0.4783,2858.0,2857.8,0.25999195]